[Event "FRA-ch Youth 2017"]
[Site "Belfort"]
[Date "2017.04.23"]
[Round "9"]
[White "Salvador, Lucie"]
[Black "Rollot, Florence"]
[Result "0-1"]
[ECO "A46"]
[WhiteElo "1823"]
[BlackElo "1973"]
[Annotator "NA RC"]
[PlyCount "84"]
[EventDate "2017.??.??"]
[EventCountry "FRA"]
[SourceTitle "playchess.com"]
[Source "ChessBase"]
[SourceQuality "1"]
[TimeControl "5400+30"]

{[%evp 8,83,8,15,13,5,32767,20,32767,0,37,50,44,53,48,34,32767,32767,32767,71,75,41,42,15,90,32767,73,32767,106,107,145,75,191,75,146,32767,32767,50,178,32767,-61,32767,32767,-83,32767,32767,32767,-345,32767,-219,32767,-118,-108,-135,32767,-118,32767,32767,-67,32767,32767,-597,32767,32767,32767,32767,32767,32767,-1072,32767,32767,32767,32767,-5502,-5497,32767,32767,-29998]} 1. d4 {[%emt 0:00:00]} Nf6 {[%emt 0:00:07]} 2. Nf3 {[%emt 0:00:00]} c5 {[%emt 0:00:06]} 3. g3 {[%emt 0:02:38]} cxd4 {[%emt 0:00:25]} 4. Nxd4 {[%emt 0:02:25]} g6 {[%emt 0:00:26]} 5. Bg2 {[%emt 0:00:16]} Bg7 {[%emt 0:00:14]} 6. O-O {[%emt 0:00:14]} O-O {[%emt 0:00:41]} 7. c4 {[%emt 0:04:23]} Nc6 {[%emt 0:03:40]} 8. e3 {[%emt 0:03:08] E60: King's Indian: Unusual lines and Fianchetto Variation without Nc3} (8. Nc3 Qa5 9. Nb3 Qh5 10. h3 d6 11. g4 Bxg4 12. hxg4 Nxg4 13. Bf4 Be5 14. Qd2 g5 15. Bxe5 Ncxe5 16. Rfc1 Nxc4 17. Qd4 Nce3 18. fxe3 Qh4 19. Nd5 Qf2+ 20. Kh1 Qh4+ 21. Kg1 Qf2+ 22. Kh1 {½-½ (22) Banusz,T (2613)-Bacrot,E (2692) Monzon 2016}) 8... Qb6 {[%emt 0:15:02]} 9. Nc3 {[%emt 0:25:04] LiveBook: 18 Games} a6 {[%emt 0:14:09]} 10. b3 {[%emt 0:05:45]} d6 {[%emt 0:04:09]} 11. Bb2 {[%emt 0:09:02]} Bg4 {[%emt 0:07:59]} 12. Qd2 {[%emt 0:00:12]} Rac8 {[%emt 0:25:38]} 13. Nxc6 {[%emt 0:15:51]} bxc6 {[%emt 0:00:17]} 14. e4 $146 {[%emt 0:00:52]} (14. Rac1 Rfd8 15. Qc2 Bf5 16. e4 Be6 {0-1 (41) Cvitan,I-Grzinic,B Croatia 2010}) 14... Qa5 {[%emt 0:04:11]} 15. h3 {[%emt 0:02:53]} Bd7 {[%emt 0:04:08]} (15... Qh5 $11) 16. Rad1 {[%emt 0:01:34]} Qh5 {[%emt 0:03:06]} 17. Qe2 {[%emt 0:08:47]} Qa5 {[%emt 0:06:56]} 18. f4 {[%emt 0:02:01]} Nh5 {[%emt 0:00:38]} (18... Rcd8 $142) 19. Rd3 {[%emt 0:02:30]} (19. Qe3 $142) 19... Be6 {[%emt 0:02:29]} (19... f5 $16) 20. Rc1 {[%emt 0:07:18]} (20. g4 $18 {is more deadly.}) 20... Bh6 {[%emt 0:04:04]} ({Black should try} 20... Rb8 $14) 21. Qf2 {[%emt 0:02:25]} f5 {[%emt 0:01:17] [#]} 22. Ba1 {[%emt 0:02:25]} (22. Re3 $1 $18) 22... Nf6 {[%emt 0:00:37]} (22... g5 $14) 23. e5 {[%emt 0:01:05]} dxe5 {[%emt 0:00:18]} 24. Re1 {[%emt 0:00:26]} e4 {[%emt 0:00:19]} 25. Rdd1 {[%emt 0:00:19]} Bg7 {[%emt 0:00:22]} 26. Qc2 {[%emt 0:00:36]} Rfd8 {[%emt 0:00:27]} 27. Rc1 $2 {[%emt 0:00:20]} (27. Na4 $17) 27... Rd7 {[%emt 0:00:53]} 28. Na4 {[%emt 0:00:22]} Rcd8 {[%emt 0:01:15]} 29. Bc3 {[%emt 0:00:15]} Qc7 {[%emt 0:00:08]} 30. Nc5 {[%emt 0:00:11]} Qb6 {[%emt 0:00:38]} 31. b4 $2 {[%emt 0:00:09]} (31. Qf2 $16 {is forced if you want to stay better.} Kf7 32. Nxd7 Nxd7 33. Qxb6 Nxb6 34. Bxg7 Kxg7 35. Red1) 31... Bf7 {[%emt 0:00:30]} 32. Kh2 {[%emt 0:00:11]} Rd6 {[%emt 0:00:25]} 33. Nxe4 {[%emt 0:02:05]} Nxe4 {[%emt 0:00:34]} 34. Bxe4 $19 {[%emt 0:00:40]} (34. c5 $17 {was the crucial defense.} Nxc5 35. bxc5 Qxc5 36. Bxg7 Qxc2 37. Rxc2 Kxg7 38. Rxe7) 34... Bxc3 {[%emt 0:00:20]} 35. Qxc3 {[%emt 0:00:21]} Rd2+ {[%emt 0:00:07]} 36. Bg2 {[%emt 0:00:18]} Qf2 {[%emt 0:00:18]} 37. Rg1 {[%emt 0:00:27]} R8d3 {[%emt 0:00:50]} 38. Qe5 {[%emt 0:00:53]} Qxg3+ {[%emt 0:00:37]} 39. Kh1 {[%emt 0:00:07]} Re3 {[%emt 0:00:46]} 40. Qb8+ {[%emt 0:00:54]} Kg7 {[%emt 0:00:01]} 41. Qb6 {[%emt 0:00:24]} Qxf4 {[%emt 0:00:31]} 42. Qxc6 {[%emt 0:00:43]} Rxh3+ 0-1

[Event "FRA-ch Youth 2017"]
[Site "Belfort"]
[Date "2017.04.23"]
[Round "9"]
[White "Imperor, Amelie"]
[Black "Marcenac, Delphine"]
[Result "1-0"]
[ECO "B00"]
[WhiteElo "1820"]
[BlackElo "1452"]
[Annotator "NA RC"]
[PlyCount "103"]
[EventDate "2017.??.??"]
[EventCountry "FRA"]
[SourceTitle "playchess.com"]
[Source "ChessBase"]
[SourceQuality "1"]
[TimeControl "5400+30"]

1. e4 {[%emt 0:00:00]} b6 {[%emt 0:00:05]} 2. d4 {[%emt 0:00:00]} Bb7 {[%emt 0:00:08]} 3. Nc3 {[%emt 0:00:14]} e6 {[%emt 0:00:26]} 4. Be2 {[%emt 0:01:36] B00: Queen's Fianchetto Defence, Nimzowitsch Defence} (4. Be3 g6 5. Qd2 Bg7 6. O-O-O d6 7. h4 h6 8. h5 g5 9. f4 gxf4 10. Bxf4 Nd7 11. Nf3 a6 12. Kb1 {1-0 (68) Guseinov,G (2631)-Kamsky,G (2741) Khanty-Mansiysk 2013}) 4... Nf6 {[%emt 0:03:05]} 5. Bf3 {[%emt 0:00:11]} Bb4 {[%emt 0:02:44]} 6. e5 {[%emt 0:05:07]} Nd5 {[%emt 0:11:22]} 7. Bd2 {[%emt 0:01:09]} Bxc3 $146 {[%emt 0:02:52]} (7... c5 8. Nxd5 Bxd2+ 9. Qxd2 Bxd5 10. Bxd5 exd5 11. dxc5 bxc5 12. Qxd5 {1-0 (57) Anton,C (1576)-Chiorescu,V (1326) Baile Felix 2017}) 8. bxc3 {[%emt 0:00:17]} Qc8 {[%emt 0:01:56]} 9. c4 {[%emt 0:03:25]} Ne7 {[%emt 0:00:44]} 10. h4 {[%emt 0:01:54]} c5 {[%emt 0:09:20]} 11. c3 {[%emt 0:13:21]} Bxf3 {[%emt 0:11:21]} 12. Qxf3 {[%emt 0:00:17]} Qc6 {[%emt 0:00:26]} (12... Nbc6 $17) 13. Rh3 {[%emt 0:05:45]} Qxf3 {[%emt 0:03:05]} 14. Nxf3 {[%emt 0:00:04]} Nbc6 {[%emt 0:05:00]} 15. dxc5 {[%emt 0:09:10]} bxc5 {[%emt 0:01:36]} 16. Be3 {[%emt 0:00:06]} Na5 {[%emt 0:00:37]} 17. Bxc5 {[%emt 0:00:12]} Nxc4 {[%emt 0:00:55]} 18. Rb1 {[%emt 0:01:05]} Nc6 {[%emt 0:03:17]} 19. Rg3 {[%emt 0:04:13]} Rg8 {[%emt 0:14:03]} 20. Nd2 {[%emt 0:31:54]} Nxd2 {[%emt 0:02:05]} 21. Kxd2 {[%emt 0:00:05]} Nxe5 {[%emt 0:00:14]} 22. Bd4 {[%emt 0:03:38]} f6 {[%emt 0:00:56]} 23. Rb7 {[%emt 0:07:12]} a6 {[%emt 0:01:15]} 24. Bxe5 {[%emt 0:01:28]} fxe5 {[%emt 0:00:07]} 25. Rd3 {[%emt 0:00:02]} d5 $16 {[%emt 0:03:12]} (25... Rd8 $11) 26. Re3 {[%emt 0:00:05]} (26. Rg3 $16) 26... e4 {[%emt 0:02:43] [#]} 27. f3 {[%emt 0:00:01]} (27. Rg3 $1 $16) 27... Rd8 {[%emt 0:07:03]} 28. fxe4 {[%emt 0:00:43]} dxe4+ {[%emt 0:00:27]} 29. Ke2 {[%emt 0:00:00]} Rd7 {[%emt 0:02:54]} 30. Rxd7 {[%emt 0:00:05]} Kxd7 {[%emt 0:00:05]} 31. Rxe4 {[%emt 0:00:00]} Rb8 {[%emt 0:01:57]} 32. Ra4 {[%emt 0:03:35]} Rb6 {[%emt 0:01:45]} 33. Kd3 {[%emt 0:00:31]} Kd6 {[%emt 0:01:24]} 34. Ra5 {[%emt 0:01:31]} Rc6 {[%emt 0:00:50]} 35. g4 {[%emt 0:01:47]} g6 {[%emt 0:00:42]} 36. Kd4 {[%emt 0:03:22]} h6 {[%emt 0:02:06]} 37. Ra4 {[%emt 0:00:57]} Rb6 {[%emt 0:02:10]} 38. Rb4 {[%emt 0:00:27]} Rc6 {[%emt 0:02:31]} 39. Rb7 {[%emt 0:00:46]} Rc5 {[%emt 0:00:25]} 40. Rb6+ {[%emt 0:00:49]} Rc6 {[%emt 0:00:05]} 41. Rxc6+ {[%emt 0:00:47]} Kxc6 {[%emt 0:00:03]} 42. g5 {[%emt 0:00:03]} hxg5 {[%emt 0:00:37]} 43. hxg5 {[%emt 0:00:01]} Kd6 {[%emt 0:00:15]} 44. a4 {[%emt 0:00:20]} a5 {[%emt 0:00:19]} 45. Ke4 {[%emt 0:00:16]} e5 {[%emt 0:01:37]} 46. c4 {[%emt 0:00:13]} Kc5 {[%emt 0:00:40]} 47. Kxe5 {[%emt 0:00:04]} Kxc4 {[%emt 0:00:05]} 48. Kf6 {[%emt 0:00:08]} Kb4 {[%emt 0:00:09]} 49. Kxg6 {[%emt 0:00:06]} Kxa4 {[%emt 0:00:07]} 50. Kf5 {[%emt 0:00:04]} Kb4 {[%emt 0:00:35]} 51. g6 {[%emt 0:00:06]} a4 {[%emt 0:00:09]} 52. g7 {[%emt 0:00:02]} 1-0

[Event "FRA-ch Youth 2017"]
[Site "Belfort"]
[Date "2017.04.23"]
[Round "9"]
[White "Bartels, Karina"]
[Black "Fretel, Liza"]
[Result "0-1"]
[ECO "B24"]
[WhiteElo "1759"]
[BlackElo "1801"]
[Annotator "NA RC"]
[PlyCount "66"]
[EventDate "2017.??.??"]
[EventCountry "FRA"]
[SourceTitle "playchess.com"]
[Source "ChessBase"]
[SourceQuality "1"]
[TimeControl "5400+30"]

{[%evp 8,47,-28,-27,-12,-12,-24,-31,-29,-56,-44,32767,0,-10,7,-57,57,-123,-109,32767,32767,32767,32767,32767,32767,-124,-142,-125,32767,-176,29,-578,-579,-873,-535,-527,-184,32767,-210,-278,-189,-243]} 1. e4 {[%emt 0:00:00]} c5 {[%emt 0:00:05]} 2. Nc3 {[%emt 0:00:00]} Nc6 {[%emt 0:00:07]} 3. d3 {[%emt 0:00:00]} g6 {[%emt 0:00:29]} 4. g4 {[%emt 0:01:21] B23: Closed Sicilian: Lines without g3} Bg7 {[%emt 0:01:11]} 5. Be3 {[%emt 0:00:43]} d6 {[%emt 0:00:13]} 6. Bg2 {[%emt 0:04:23]} Rb8 {[%emt 0:03:40]} 7. h3 {[%emt 0:00:49]} b5 {[%emt 0:02:07]} 8. Qd2 {[%emt 0:01:08]} b4 $146 {[%emt 0:02:04]} (8... Qa5 9. Nge2 h5 10. gxh5 Rxh5 11. f4 {0-1 (35) Krausser,H (2166)-Reich,T (2394) Fuerth 1999}) 9. Nd1 {[%emt 0:00:30]} Ba6 {[%emt 0:03:50]} 10. f4 {[%emt 0:15:59]} e6 {[%emt 0:05:25]} 11. f5 {[%emt 0:11:45]} (11. a3 $11) 11... Nf6 {[%emt 0:08:05]} ({Better is} 11... exf5 $15 12. exf5 Bb7) 12. e5 $2 {[%emt 0:05:15]} (12. g5 $14 {keeps the upper hand.}) 12... Nxe5 {[%emt 0:02:14]} 13. Ne2 {[%emt 0:23:32]} Bb7 {[%emt 0:00:59]} 14. Bxb7 {[%emt 0:02:40]} Rxb7 {[%emt 0:00:05]} 15. O-O {[%emt 0:02:05]} Nfxg4 {[%emt 0:09:28]} 16. hxg4 {[%emt 0:03:52]} Qh4 {[%emt 0:00:51]} ({Worse is} 16... Nxg4 17. fxe6 (17. Bg5 f6 18. Nf4 gxf5 19. Nxe6 Qe7 $11) 17... Qh4 18. Bf4 $11) 17. Nf4 {[%emt 0:06:00]} Nxg4 {[%emt 0:04:38]} 18. fxe6 {[%emt 0:03:02] [#]} g5 $2 {[%emt 0:12:47]} ({Weaker is} 18... Nxe3 19. Nxe3 O-O 20. Qg2 $14) ({Better is} 18... O-O $1 $17 {White must now prevent ...fxe6.} 19. Qg2 Re7) 19. exf7+ $19 {[%emt 0:02:35]} (19. Qg2 $11 {and White stays safe.} O-O 20. Nh3 fxe6 21. Rxf8+ (21. Qxb7 Rxf1+ 22. Kxf1 Qxh3+ 23. Ke2 Qh2+ 24. Bf2 Bxb2 $16) (21. Nxg5 Rbb8 $11) 21... Bxf8 22. Qxb7 (22. Nhf2 Nxe3 23. Nxe3 d5 $11) 22... Qg3+ 23. Kf1 Qxh3+ 24. Ke2) 19... Rxf7 {[%emt 0:00:08]} 20. Ne6 {[%emt 0:03:33]} Rxf1+ {[%emt 0:06:50]} 21. Kxf1 {[%emt 0:00:01]} Qh1+ {[%emt 0:00:31]} (21... Nh2+ $142 22. Kg2 Be5) 22. Ke2 {[%emt 0:00:51]} Be5 {[%emt 0:02:20]} 23. Qe1 {[%emt 0:01:44]} Qg2+ {[%emt 0:01:31]} 24. Nf2 {[%emt 0:01:12]} Nxf2 {[%emt 0:02:17]} 25. Qxf2 {[%emt 0:01:47]} Qg4+ {[%emt 0:00:08]} 26. Qf3 {[%emt 0:00:56]} Qxe6 {[%emt 0:00:26]} 27. Qa8+ {[%emt 0:00:48]} Kf7 {[%emt 0:02:55]} 28. Qxa7+ {[%emt 0:02:30]} Kg6 {[%emt 0:00:20]} 29. Rg1 {[%emt 0:01:24]} Bf4 {[%emt 0:00:35]} 30. Qa4 {[%emt 0:02:43]} Qxe3+ {[%emt 0:00:12]} 31. Kf1 {[%emt 0:00:10]} Bg3 {[%emt 0:00:50]} 32. Rxg3 {[%emt 0:00:27]} Qxg3 {[%emt 0:00:13]} 33. Qd7 {[%emt 0:01:04]} Rf8+ {[%emt 0:00:12]} 0-1

[Event "FRA-ch Youth 2017"]
[Site "Belfort"]
[Date "2017.04.23"]
[Round "9"]
[White "Conti, Anne-Marie"]
[Black "Lomandong Noela-Joyce"]
[Result "0-1"]
[ECO "E08"]
[WhiteElo "1712"]
[BlackElo "1987"]
[Annotator "NA RC"]
[PlyCount "102"]
[EventDate "2017.??.??"]
[EventCountry "FRA"]
[SourceTitle "playchess.com"]
[Source "ChessBase"]
[SourceQuality "1"]
[TimeControl "5400+30"]

{[%evp 8,96,8,28,24,23,22,16,18,0,25,-14,-10,-25,-30,32767,32767,-16,32767,-7,-17,-117,-104,-105,-102,-114,-117,-118,-28,-48,-43,-60,-39,-65,-50,-67,32767,-68,-68,32767,-87,32767,-87,-98,-99,-92,-78,-116,-128,-115,-120,-122,-110,32767,32767,-116,-116,-122,-100,32767,32767,-591,-621,32767,-636,-587,-669,-630,-673,-659,32767,32767,-668,-677,-639,32767,-785,-741,-752,-801,32767,-904,-859,-910,-966,32767,32767,32767,32767,32767,-1004]} 1. d4 {[%emt 0:00:00]} d5 {[%emt 0:00:03]} 2. c4 {[%emt 0:00:00]} c6 {[%emt 0:00:03]} 3. Nf3 {[%emt 0:00:00]} Nf6 {[%emt 0:00:04]} 4. g3 {[%emt 0:00:00]} e6 {[%emt 0:00:04]} 5. Bg2 {[%emt 0:00:01]} Be7 {[%emt 0:00:11]} 6. O-O {[%emt 0:00:14]} Nbd7 {[%emt 0:00:33]} 7. b3 {[%emt 0:00:50]} O-O {[%emt 0:00:12]} 8. Qc2 {[%emt 0:02:25]} b6 {[%emt 0:02:31]} 9. Nc3 {[%emt 0:00:21]} Ba6 {[%emt 0:02:31] LiveBook: 56 Games E08: Closed Catalan: Main Line: 7 Qc2} 10. cxd5 {[%emt 0:01:04]} (10. e4 dxc4 11. Rd1 cxb3 12. axb3 Bb7 {½-½ (12) Vallejo Pons,F (2711)-Anton Guijarro,D (2627) Madrid 2016}) 10... cxd5 {[%emt 0:00:24]} 11. a3 $146 {[%emt 0:03:57]} (11. Bb2 Rc8 12. Rfc1 Ne4 13. Qd1 Ba3 14. Bxa3 Nxc3 15. Rxc3 Rxc3 16. Bxf8 Qxf8 17. Qd2 {0-1 (64) Moon,B (2134)-Yang,D (2473) Philadelphia 2015}) 11... Rc8 {[%emt 0:01:51]} 12. Bb2 {[%emt 0:00:36]} Ne4 {[%emt 0:01:46]} 13. Rfc1 {[%emt 0:03:53]} Ndf6 {[%emt 0:13:45]} 14. h3 {[%emt 0:04:30] [#]} (14. Qd1 $11 {keeps the balance.}) 14... Nxc3 $1 {[%emt 0:07:16]} 15. Bxc3 {[%emt 0:03:48]} Ne4 {[%emt 0:00:19]} 16. Qb2 {[%emt 0:01:17]} Nxc3 {[%emt 0:02:24]} 17. Rxc3 {[%emt 0:00:14]} Qd6 {[%emt 0:04:20]} (17... Rxc3 $17 18. Qxc3 Bxe2) 18. Rxc8 {[%emt 0:03:19]} Rxc8 {[%emt 0:00:09]} 19. b4 {[%emt 0:02:01]} Qc6 {[%emt 0:04:35]} 20. e3 {[%emt 0:10:00]} f6 {[%emt 0:02:43]} 21. Ne1 {[%emt 0:11:29]} Qc3 {[%emt 0:04:26]} 22. Qb1 {[%emt 0:03:12]} Bc4 {[%emt 0:04:18]} 23. h4 {[%emt 0:05:26]} Bd6 {[%emt 0:06:41]} 24. Bh3 {[%emt 0:04:17]} Kf7 {[%emt 0:03:38]} 25. Qd1 {[%emt 0:04:03] [#]} Be2 $1 {[%emt 0:03:48]} 26. Qb1 {[%emt 0:02:23]} g6 {[%emt 0:04:32]} 27. Ra2 {[%emt 0:03:02]} Bc4 {[%emt 0:00:08]} 28. Ra1 {[%emt 0:01:17]} Qd2 {[%emt 0:07:34]} ({Don't do} 28... Bxg3 29. fxg3 Qxe3+ 30. Kh2 $15) 29. h5 {[%emt 0:02:26]} Qe2 {[%emt 0:05:14]} 30. hxg6+ {[%emt 0:05:07]} hxg6 {[%emt 0:00:08]} 31. Qd1 {[%emt 0:09:33]} Qxd1 {[%emt 0:04:21]} 32. Rxd1 {[%emt 0:00:22]} Bb3 {[%emt 0:00:05]} 33. Rd3 {[%emt 0:01:53]} Ba4 {[%emt 0:00:28]} 34. Bf1 $2 {[%emt 0:02:25]} (34. f4 {is a better chance.}) 34... Rc1 {[%emt 0:00:36]} 35. Kg2 {[%emt 0:06:43]} Rxe1 {[%emt 0:01:02]} 36. Rc3 {[%emt 0:00:04]} Ra1 {[%emt 0:00:53]} 37. Bd3 {[%emt 0:02:00]} f5 {[%emt 0:01:25]} 38. Be2 {[%emt 0:02:28]} Ra2 {[%emt 0:01:22]} 39. Bd3 {[%emt 0:00:46]} Ke7 {[%emt 0:00:21]} 40. Bb1 {[%emt 0:00:35]} Rb2 {[%emt 0:00:08]} 41. Rc1 {[%emt 0:00:58]} Rb3 {[%emt 0:00:28]} 42. g4 {[%emt 0:00:24]} Rxa3 {[%emt 0:00:20]} 43. Rh1 {[%emt 0:00:59]} Bb5 {[%emt 0:00:46]} 44. g5 {[%emt 0:00:17]} Kf7 {[%emt 0:02:19]} 45. Rh7+ {[%emt 0:00:13]} Kg8 {[%emt 0:00:09]} 46. Rh6 {[%emt 0:00:24]} Kg7 {[%emt 0:00:01]} 47. Rh1 {[%emt 0:01:01]} Bxb4 {[%emt 0:00:55]} 48. Bc2 {[%emt 0:00:28]} Be7 $19 {[%emt 0:00:44]} 49. Rb1 {[%emt 0:00:20]} a6 {[%emt 0:00:08]} 50. Kf3 {[%emt 0:00:41]} Rc3 {[%emt 0:01:01]} 51. Bd1 {[%emt 0:00:15]} Bxg5 {[%emt 0:00:11]} 0-1

[Event "FRA-ch Youth 2017"]
[Site "Belfort"]
[Date "2017.04.23"]
[Round "9"]
[White "Bureau-Leroyer, Lola"]
[Black "Vernet, Solene"]
[Result "0-1"]
[ECO "A05"]
[WhiteElo "1635"]
[BlackElo "1863"]
[Annotator "NA RC"]
[PlyCount "58"]
[EventDate "2017.??.??"]
[EventCountry "FRA"]
[SourceTitle "playchess.com"]
[Source "ChessBase"]
[SourceQuality "1"]
[TimeControl "5400+30"]

{[%evp 8,58,18,10,7,32767,0,32767,22,49,32767,32767,74,-104,32767,-113,-91,-105,-49,-117,-90,-125,-109,-97,-136,-108,-101,-233,-105,-116,-111,-260,32767,32767,-214,32767,-339,-339,32767,-375,32767,-470,-292,-312,-285,-331,-330,-341,32767,-383,-398,-441,-471]} 1. Nf3 {[%emt 0:00:00]} Nf6 {[%emt 0:00:07]} 2. c4 {[%emt 0:00:00]} c5 {[%emt 0:00:10]} 3. b3 {[%emt 0:00:49]} d5 {[%emt 0:00:26]} 4. cxd5 {[%emt 0:01:42] A30: Symmetrical English: Double Fianchetto and Hedgehog} Nxd5 {[%emt 0:00:17] LiveBook: 29 Games} 5. e3 {[%emt 0:00:43]} (5. Bb2 Nc6 6. Nc3 Nf6 7. g3 e5 8. Bg2 Be7 9. O-O O-O 10. d3 Re8 11. Rc1 Bf5 12. Nd2 Rc8 13. Nde4 b6 14. a3 Nxe4 15. dxe4 Qxd1 16. Rfxd1 Be6 17. Nd5 Bf8 18. e3 {0-1 (40) Grischuk,A (2737)-Salem,A (2656) Doha 2016}) 5... Nc6 {[%emt 0:03:09]} 6. Bb2 {[%emt 0:00:58]} Bf5 {[%emt 0:03:41]} 7. Bb5 {[%emt 0:03:26]} Qb6 {[%emt 0:04:36]} 8. Qe2 $146 {[%emt 0:05:46]} (8. Na3 a6 9. Bxc6+ Qxc6 10. O-O Nb4 11. Ne5 Qc7 12. Qf3 {0-1 (61) Lopez Idarraga,D (2053)-Valle,E (2229) Ibague 2013}) 8... a6 {[%emt 0:05:03]} 9. Bxc6+ {[%emt 0:01:25]} Qxc6 {[%emt 0:00:10]} 10. Na3 $2 {[%emt 0:06:06]} (10. Ne5 $1 $14 {keeps the upper hand.} Qh6 11. Qf3) 10... Nb4 {[%emt 0:02:57]} 11. d4 {[%emt 0:08:00]} Nd3+ {[%emt 0:04:14]} 12. Kf1 {[%emt 0:03:13]} Nxb2 {[%emt 0:01:21]} 13. Ne5 {[%emt 0:00:29]} ({White has to play} 13. Qxb2 $15 Be4 14. dxc5) 13... Qf6 {[%emt 0:01:58]} 14. e4 {[%emt 0:01:41]} Bg6 {[%emt 0:04:02]} ({Don't play} 14... cxd4 15. exf5 Qxf5 16. Nb5 $15) 15. Qxb2 {[%emt 0:01:24]} e6 {[%emt 0:05:53]} ({But not} 15... Bxe4 16. Re1 Qf4 17. dxc5 $15) 16. Nac4 {[%emt 0:04:58]} Bxe4 {[%emt 0:03:52]} 17. f3 {[%emt 0:01:26]} (17. Re1 $17 {might work better.} Qf4 18. f3) 17... Bd5 {[%emt 0:01:33]} ({Black should play} 17... Rd8 $19 18. Re1 Rxd4) 18. Nb6 {[%emt 0:00:55]} Rd8 {[%emt 0:00:11]} 19. Re1 {[%emt 0:04:46]} (19. Qa3 $17 Bc6 20. Nxc6 bxc6 21. Qa4 Qxd4 22. Qxc6+ Ke7 23. Re1) 19... cxd4 {[%emt 0:05:23]} 20. Qc2 {[%emt 0:03:44]} Qe7 {[%emt 0:04:11]} 21. b4 {[%emt 0:08:25]} Qxb4 {[%emt 0:07:19]} 22. Nxd5 {[%emt 0:01:16]} Qb5+ {[%emt 0:02:29]} 23. Kf2 {[%emt 0:00:38]} Qxd5 {[%emt 0:00:16]} 24. Qa4+ {[%emt 0:00:29]} Qb5 {[%emt 0:05:19]} (24... b5 $142 25. Qxa6 d3 26. Qc6+ Qxc6 27. Nxc6 Bc5+ 28. Kg3 Rd6) 25. Qxb5+ {[%emt 0:03:08]} axb5 {[%emt 0:00:07]} 26. Rb1 {[%emt 0:00:15]} Rd5 {[%emt 0:00:12]} 27. f4 {[%emt 0:00:54]} Bd6 {[%emt 0:00:23]} 28. Rhc1 {[%emt 0:00:24]} Ke7 {[%emt 0:01:09]} ({Less strong is} 28... Bxe5 29. Rc8+ Rd8 30. Rxd8+ Kxd8 31. fxe5 $19) 29. a4 {[%emt 0:00:38]} Ra8 $19 {[%emt 0:06:38]} ({Weaker is} 29... Bxe5 30. fxe5 Rxe5 31. axb5 $19) 0-1

[Event "FRA-ch Youth 2017"]
[Site "Belfort"]
[Date "2017.04.23"]
[Round "9"]
[White "Milroy, Melena"]
[Black "Afraoui, Anaelle"]
[Result "0-1"]
[ECO "B23"]
[WhiteElo "1610"]
[BlackElo "1977"]
[Annotator "NA RC"]
[PlyCount "82"]
[EventDate "2017.??.??"]
[EventCountry "FRA"]
[SourceTitle "playchess.com"]
[Source "ChessBase"]
[SourceQuality "1"]
[TimeControl "5400+30"]

{[%evp 8,81,4,14,0,-8,3,0,29,-28,-22,-14,-22,-22,-12,-27,-18,-58,-29,32767,-28,-29,-10,32767,-6,-23,-9,-5,19,-29,-12,-110,-68,-164,-158,-214,-165,-177,-204,32767,32767,32767,32767,32767,-158,32767,-450,-493,66,-471,32767,-484,-499,-847,-87,-767,-553,-450,-1010,-922,32767,32767,-407,-443,-347,32767,-227,-807,-771,-29985,32767,-29981,-29988,-29988,-29986,-29991]} 1. e4 {[%emt 0:00:00]} c5 {[%emt 0:00:07]} 2. Nc3 {[%emt 0:00:00]} a6 {[%emt 0:00:06]} 3. f4 {[%emt 0:00:00]} b5 {[%emt 0:00:37]} 4. d3 {[%emt 0:00:40]} e6 {[%emt 0:00:14]} 5. Nf3 {[%emt 0:00:09]} Be7 {[%emt 0:00:22]} 6. Be2 {[%emt 0:00:19]} d6 {[%emt 0:00:28]} 7. O-O {[%emt 0:01:20]} Nf6 {[%emt 0:00:19]} 8. a4 {[%emt 0:02:54]} b4 {[%emt 0:03:26]} 9. Nb1 {[%emt 0:00:09]} O-O {[%emt 0:00:51]} 10. Nbd2 {[%emt 0:00:55]} Qc7 {[%emt 0:05:01]} 11. Qe1 {[%emt 0:02:51]} Nc6 {[%emt 0:03:55]} 12. Nh4 {[%emt 0:02:42]} Rb8 {[%emt 0:04:23]} 13. b3 {[%emt 0:00:20]} Nd4 {[%emt 0:00:20]} 14. Bd1 {[%emt 0:00:20]} Ne8 {[%emt 0:02:46]} 15. Ndf3 {[%emt 0:04:36]} Qd8 {[%emt 0:06:34]} 16. g3 {[%emt 0:07:44]} Nxf3+ {[%emt 0:05:12]} 17. Nxf3 {[%emt 0:01:09]} f5 {[%emt 0:01:08]} 18. e5 {[%emt 0:01:56]} dxe5 {[%emt 0:05:41]} 19. fxe5 {[%emt 0:00:06]} (19. Qxe5 $11 {remains equal.} Nc7 20. Ra2) 19... Bb7 {[%emt 0:00:20]} ({Black should play} 19... g5 $17 {And now ...g4 would win.} 20. Qe3 g4) 20. Rb1 {[%emt 0:01:00]} (20. h3 $17 {was called for.}) 20... g5 {[%emt 0:02:34]} 21. Rf2 {[%emt 0:09:14]} (21. Qe2 $17) 21... g4 {[%emt 0:03:25]} 22. Bh6 {[%emt 0:02:01]} Ng7 {[%emt 0:03:08]} 23. Nd2 {[%emt 0:05:14]} Qd5 {[%emt 0:01:12]} 24. Kf1 {[%emt 0:00:15]} Rf7 {[%emt 0:09:50]} 25. Qe3 {[%emt 0:04:01]} Rd8 $2 {[%emt 0:05:54]} (25... Qh1+ $19 {has better winning chances.} 26. Ke2 {[#]} f4 $1 {[%mdl 512]} 27. Rxf4 Nf5) 26. Qf4 {[%emt 0:01:50]} Nh5 {[%emt 0:08:44]} 27. Qe3 {[%emt 0:02:12]} Qh1+ {[%emt 0:00:38]} 28. Ke2 {[%emt 0:00:22]} f4 {[%emt 0:01:08]} 29. Bxf4 {[%emt 0:10:03]} Nxf4+ {[%emt 0:00:33]} 30. Rxf4 {[%emt 0:00:28]} Qxh2+ $2 {[%emt 0:02:40]} (30... Rxf4 $19 {has better winning chances.} 31. Qxf4 Rf8 32. Qxg4+ Kh8) 31. Rf2 $2 {[%emt 0:01:18]} (31. Qf2 $17 Qxf2+ 32. Kxf2) 31... Rxf2+ {[%emt 0:00:15]} 32. Qxf2 {[%emt 0:00:07]} Qh5 {[%emt 0:00:27]} 33. Nc4 {[%emt 0:05:06]} Rf8 {[%emt 0:02:00]} 34. Qg1 {[%emt 0:01:30]} Qf5 {[%emt 0:00:49]} (34... Rf3 $142 {Threatens to win with ...Qh3.} 35. Rc1 Qh3) 35. Ke1 {[%emt 0:01:19]} Bg5 {[%emt 0:02:18]} 36. Be2 {[%emt 0:01:55]} Bf3 {[%emt 0:02:29]} 37. Bf1 $2 {[%emt 0:08:35]} (37. Bxf3 gxf3 38. Kf1) 37... Bd5 {[%emt 0:01:11]} 38. Bg2 {[%emt 0:07:37]} Bxc4 {[%emt 0:02:30]} 39. bxc4 {[%emt 0:10:20]} Qxe5+ {[%emt 0:00:08]} 40. Kd1 {[%emt 0:01:05]} Qxg3 {[%emt 0:00:17]} 41. Ke2 {[%emt 0:00:28]} Be3 {[%emt 0:01:43]} 0-1